[Event "Titled Tuesday Blitz December 06 Early 2022"]
[White "Sagita, Catur Adi"]
[Black "HSH1987"]
[WhiteFideId "7104618"]
[WhiteElo "2655"]
[BlackElo "2538"]
[Result "1-0"]
[Round "07"]
[TimeControl "180+1"]
[Date "2022.12.07"]
[WhiteClock "0:00:48"]
[BlackClock "0:00:05"]

1. d4 {[%clk 0:02:50]}  Nf6 {[%clk 0:02:59]} 2. c4 {[%clk 0:02:47]}  c5 {[%clk 0:02:58]} 3. Nf3 {[%clk 0:02:44]}  cxd4 {[%clk 0:02:58]} 4. Nxd4 {[%clk 0:02:45]}  g6 {[%clk 0:02:58]} 5. g3 {[%clk 0:02:45]}  Bg7 {[%clk 0:02:55]} 6. Bg2 {[%clk 0:02:45]}  O-O {[%clk 0:02:52]} 7. O-O {[%clk 0:02:46]}  d5 {[%clk 0:02:49]} 8. cxd5 {[%clk 0:02:45]}  Nxd5 {[%clk 0:02:50]} 9. Nb3 {[%clk 0:02:46]}  Nb4 {[%clk 0:02:43]} 10. Bd2 {[%clk 0:02:46]}  N8c6 {[%clk 0:02:37]} 11. Nc3 {[%clk 0:02:45]}  Bf5 {[%clk 0:02:22]} 12. Nc5 {[%clk 0:02:45]}  Qb6 {[%clk 0:02:16]} 13. N3a4 {[%clk 0:02:44]}  Qb5 {[%clk 0:02:14]} 14. Qb3 {[%clk 0:02:41]}  Bc2 {[%clk 0:02:05]} 15. Bxc6 {[%clk 0:02:40]}  Qxc6 {[%clk 0:01:39]} 16. Qxb4 {[%clk 0:02:39]}  b6 {[%clk 0:01:39]} 17. Nb3 {[%clk 0:02:38]}  a5 {[%clk 0:01:32]} 18. Qa3 {[%clk 0:02:02]}  Rfd8 {[%clk 0:01:19]} 19. Be3 {[%clk 0:01:54]}  b5 {[%clk 0:01:08]} 20. Qc5 {[%clk 0:01:53]}  Qxc5 {[%clk 0:00:58]} 21. Naxc5 {[%clk 0:01:54]}  Bxb2 {[%clk 0:00:56]} 22. Nb7 {[%clk 0:01:53]}  Rdc8 {[%clk 0:00:49]} 23. N7xa5 {[%clk 0:01:53]}  Bxa1 {[%clk 0:00:48]} 24. Rxa1 {[%clk 0:01:54]}  Bxb3 {[%clk 0:00:47]} 25. Nxb3 {[%clk 0:01:41]}  Rc2 {[%clk 0:00:46]} 26. Nd4 {[%clk 0:01:38]}  Rcxa2 {[%clk 0:00:45]} 27. Rxa2 {[%clk 0:01:15]}  Rxa2 {[%clk 0:00:46]} 28. Nxb5 {[%clk 0:01:16]}  Rxe2 {[%clk 0:00:44]} 29. Nc3 {[%clk 0:01:17]}  Rc2 {[%clk 0:00:38]} 30. Nd5 {[%clk 0:01:18]}  Kf8 {[%clk 0:00:33]} 31. h4 {[%clk 0:01:17]}  h5 {[%clk 0:00:33]} 32. Kg2 {[%clk 0:01:17]}  f6 {[%clk 0:00:32]} 33. Nf4 {[%clk 0:01:15]}  Kf7 {[%clk 0:00:32]} 34. Kf3 {[%clk 0:01:16]}  e5 {[%clk 0:00:31]} 35. Nd3 {[%clk 0:01:14]}  Ke6 {[%clk 0:00:29]} 36. Ne1 {[%clk 0:01:13]}  Ra2 {[%clk 0:00:29]} 37. Ng2 {[%clk 0:01:13]}  f5 {[%clk 0:00:28]} 38. Ne1 {[%clk 0:01:13]}  Rb2 {[%clk 0:00:23]} 39. Kg2 {[%clk 0:01:13]}  e4 {[%clk 0:00:20]} 40. Kh3 {[%clk 0:01:11]}  Kf7 {[%clk 0:00:19]} 41. Ng2 {[%clk 0:01:11]}  Rb1 {[%clk 0:00:20]} 42. Nf4 {[%clk 0:01:10]}  Ra1 {[%clk 0:00:20]} 43. Kg2 {[%clk 0:01:10]}  Rb1 {[%clk 0:00:19]} 44. Nh3 {[%clk 0:01:11]}  Rb3 {[%clk 0:00:17]} 45. Ng5+ {[%clk 0:01:11]}  Kf6 {[%clk 0:00:17]} 46. Bd4+ {[%clk 0:01:11]}  Ke7 {[%clk 0:00:17]} 47. Kf1 {[%clk 0:01:10]}  Rd3 {[%clk 0:00:15]} 48. Be3 {[%clk 0:01:09]}  Rb3 {[%clk 0:00:14]} 49. Ke2 {[%clk 0:01:10]}  Rb2+ {[%clk 0:00:15]} 50. Kd1 {[%clk 0:01:10]}  Ra2 {[%clk 0:00:14]} 51. Kc1 {[%clk 0:01:10]}  Kf6 {[%clk 0:00:12]} 52. Kb1 {[%clk 0:01:08]}  Re2 {[%clk 0:00:12]} 53. Nh3 {[%clk 0:01:09]}  Kf7 {[%clk 0:00:10]} 54. Nf4 {[%clk 0:01:07]}  Re1+ {[%clk 0:00:10]} 55. Kc2 {[%clk 0:01:08]}  Ra1 {[%clk 0:00:08]} 56. Kc3 {[%clk 0:01:08]}  Ra4 {[%clk 0:00:07]} 57. Nd5 {[%clk 0:01:07]}  Ke6 {[%clk 0:00:06]} 58. Nb6 {[%clk 0:01:08]}  Ra1 {[%clk 0:00:06]} 59. Nc4 {[%clk 0:01:07]}  Ra2 {[%clk 0:00:05]} 60. Kd4 {[%clk 0:01:07]}  Ra4 {[%clk 0:00:05]} 61. Kc5 {[%clk 0:01:07]}  Ra2 {[%clk 0:00:04]} 62. Nd2 {[%clk 0:01:07]}  Rc2+ {[%clk 0:00:04]} 63. Kb6 {[%clk 0:01:07]}  Ra2 {[%clk 0:00:05]} 64. Kc7 {[%clk 0:01:07]}  Rc2+ {[%clk 0:00:05]} 65. Kd8 {[%clk 0:01:07]}  Kf7 {[%clk 0:00:05]} 66. Nb3 {[%clk 0:01:05]}  Rb2 {[%clk 0:00:05]} 67. Nd4 {[%clk 0:01:05]}  Rb8+ {[%clk 0:00:05]} 68. Kd7 {[%clk 0:01:06]}  Ra8 {[%clk 0:00:06]} 69. Nc6 {[%clk 0:01:06]}  Ra2 {[%clk 0:00:05]} 70. Kd6 {[%clk 0:01:04]}  Ra6 {[%clk 0:00:04]} 71. Bd4 {[%clk 0:01:03]}  Ra2 {[%clk 0:00:04]} 72. Nd8+ {[%clk 0:01:02]}  Ke8 {[%clk 0:00:04]} 73. Ne6 {[%clk 0:01:02]}  Kf7 {[%clk 0:00:05]} 74. Ng5+ {[%clk 0:01:02]}  Kf8 {[%clk 0:00:05]} 75. Ke5 {[%clk 0:01:01]}  Ra6 {[%clk 0:00:06]} 76. Kf4 {[%clk 0:00:52]}  Rc6 {[%clk 0:00:05]} 77. Nh7+ {[%clk 0:00:49]}  Kf7 {[%clk 0:00:05]} 78. Kg5 {[%clk 0:00:49]}  Ra6 {[%clk 0:00:05]} 79. Kh6 {[%clk 0:00:46]}  Rd6 {[%clk 0:00:04]} 80. Ng5+ {[%clk 0:00:46]}  Kf8 {[%clk 0:00:04]} 81. Bc5 {[%clk 0:00:47]}  Kg8 {[%clk 0:00:04]} 82. Bxd6 {[%clk 0:00:47]}  e3 {[%clk 0:00:05]} 83. fxe3 {[%clk 0:00:48]} 1-0


[Site "https://www.chess.com"]

[Event "Titled Tuesday Blitz December 06 Early 2022"]
[White "Salinas Herrera, Pablo"]
[Black "Samaganova, Aleksandra"]
[WhiteFideId "3407128"]
[BlackFideId "13800221"]
[WhiteElo "2822"]
[BlackElo "2310"]
[Result "1-0"]
[Round "07"]
[TimeControl "180+1"]
[Date "2022.12.07"]
[WhiteClock "0:02:04"]
[BlackClock "0:00:56"]

1. e4 {[%clk 0:03:00]}  c5 {[%clk 0:02:59]} 2. Nf3 {[%clk 0:03:01]}  e6 {[%clk 0:03:00]} 3. d4 {[%clk 0:03:00]}  cxd4 {[%clk 0:03:00]} 4. Nxd4 {[%clk 0:03:01]}  a6 {[%clk 0:02:59]} 5. Be2 {[%clk 0:03:01]}  Qc7 {[%clk 0:02:58]} 6. O-O {[%clk 0:03:01]}  Nf6 {[%clk 0:02:53]} 7. Nc3 {[%clk 0:03:01]}  Nc6 {[%clk 0:02:49]} 8. Kh1 {[%clk 0:02:58]}  b6 {[%clk 0:02:43]} 9. Nxc6 {[%clk 0:02:55]}  dxc6 {[%clk 0:02:42]} 10. f4 {[%clk 0:02:48]}  Be7 {[%clk 0:02:33]} 11. e5 {[%clk 0:02:48]}  Nd5 {[%clk 0:02:32]} 12. Ne4 {[%clk 0:02:49]}  Bb7 {[%clk 0:02:23]} 13. c4 {[%clk 0:02:49]}  Nb4 {[%clk 0:02:11]} 14. a3 {[%clk 0:02:49]}  Rd8 {[%clk 0:02:10]} 15. Nd6+ {[%clk 0:02:26]}  Bxd6 {[%clk 0:02:07]} 16. exd6 {[%clk 0:02:27]}  Rxd6 {[%clk 0:02:05]} 17. Qb3 {[%clk 0:02:27]}  a5 {[%clk 0:01:43]} 18. axb4 {[%clk 0:02:26]}  axb4 {[%clk 0:01:44]} 19. c5 {[%clk 0:02:18]}  bxc5 {[%clk 0:01:40]} 20. Be3 {[%clk 0:02:18]}  Rd5 {[%clk 0:01:35]} 21. Bf3 {[%clk 0:02:18]}  Rd8 {[%clk 0:01:25]} 22. Bxc5 {[%clk 0:02:18]}  Ra8 {[%clk 0:01:07]} 23. Rxa8+ {[%clk 0:02:13]}  Bxa8 {[%clk 0:01:08]} 24. Qxb4 {[%clk 0:02:13]}  f6 {[%clk 0:00:56]} 25. Ra1 {[%clk 0:02:04]}  Kf7 {[%clk 0:00:56]} 26. Ra7 {[%clk 0:02:04]} 1-0


[Site "https://www.chess.com"]

[Event "Titled Tuesday Blitz December 06 Early 2022"]
[White "Shuvalov, Evgenij"]
[Black "Pein, Jonathan"]
[WhiteFideId "4187237"]
[BlackFideId "417092"]
[WhiteElo "2517"]
[BlackElo "2420"]
[Result "0-1"]
[Round "07"]
[TimeControl "180+1"]
[Date "2022.12.07"]
[WhiteClock "0:00:05"]
[BlackClock "0:00:17"]

1. d4 {[%clk 0:02:53]}  d5 {[%clk 0:02:58]} 2. c4 {[%clk 0:02:52]}  e6 {[%clk 0:02:51]} 3. Nc3 {[%clk 0:02:49]}  Nf6 {[%clk 0:02:50]} 4. Bg5 {[%clk 0:02:48]}  Be7 {[%clk 0:02:46]} 5. cxd5 {[%clk 0:02:33]}  Nxd5 {[%clk 0:02:42]} 6. Bd2 {[%clk 0:02:31]}  Nxc3 {[%clk 0:02:38]} 7. Bxc3 {[%clk 0:02:31]}  O-O {[%clk 0:02:37]} 8. Nf3 {[%clk 0:02:29]}  c5 {[%clk 0:02:37]} 9. dxc5 {[%clk 0:02:26]}  Bxc5 {[%clk 0:02:37]} 10. e3 {[%clk 0:02:25]}  Nc6 {[%clk 0:02:36]} 11. Bd3 {[%clk 0:02:20]}  Bb4 {[%clk 0:02:28]} 12. Rc1 {[%clk 0:02:19]}  Bxc3+ {[%clk 0:02:28]} 13. Rxc3 {[%clk 0:02:19]}  e5 {[%clk 0:02:24]} 14. h3 {[%clk 0:02:14]}  Be6 {[%clk 0:02:22]} 15. a3 {[%clk 0:02:12]}  Qf6 {[%clk 0:02:21]} 16. Qc2 {[%clk 0:02:02]}  h6 {[%clk 0:02:13]} 17. Bh7+ {[%clk 0:01:59]}  Kh8 {[%clk 0:02:13]} 18. Be4 {[%clk 0:02:00]}  Bd7 {[%clk 0:01:47]} 19. O-O {[%clk 0:01:55]}  Qe7 {[%clk 0:01:47]} 20. Rd1 {[%clk 0:01:49]}  f5 {[%clk 0:01:45]} 21. Bd5 {[%clk 0:01:49]}  Rad8 {[%clk 0:01:29]} 22. Rc5 {[%clk 0:01:34]}  e4 {[%clk 0:01:28]} 23. Bxc6 {[%clk 0:01:22]}  exf3 {[%clk 0:01:17]} 24. Bxf3 {[%clk 0:01:21]}  Ba4 {[%clk 0:01:14]} 25. Qxa4 {[%clk 0:00:52]}  Rxd1+ {[%clk 0:01:14]} 26. Qxd1 {[%clk 0:00:49]}  Qxc5 {[%clk 0:01:15]} 27. Bxb7 {[%clk 0:00:48]}  Rb8 {[%clk 0:01:10]} 28. Qd7 {[%clk 0:00:44]}  Qb6 {[%clk 0:00:58]} 29. Bf3 {[%clk 0:00:41]}  Qxb2 {[%clk 0:00:09]} 30. Qxf5 {[%clk 0:00:40]}  Qa1+ {[%clk 0:00:09]} 31. Kh2 {[%clk 0:00:39]}  Qf6 {[%clk 0:00:09]} 32. Qd5 {[%clk 0:00:32]}  Rf8 {[%clk 0:00:09]} 33. a4 {[%clk 0:00:29]}  a6 {[%clk 0:00:09]} 34. Kg1 {[%clk 0:00:21]}  Qa1+ {[%clk 0:00:08]} 35. Kh2 {[%clk 0:00:20]}  Qxa4 {[%clk 0:00:09]} 36. Qh5 {[%clk 0:00:17]}  Qe8 {[%clk 0:00:08]} 37. Qg4 {[%clk 0:00:17]}  Qb8+ {[%clk 0:00:08]} 38. g3 {[%clk 0:00:16]}  Qe5 {[%clk 0:00:08]} 39. Kg2 {[%clk 0:00:16]}  a5 {[%clk 0:00:08]} 40. Qg6 {[%clk 0:00:16]}  Qf5 {[%clk 0:00:06]} 41. Qxf5 {[%clk 0:00:15]}  Rxf5 {[%clk 0:00:07]} 42. Bc6 {[%clk 0:00:13]}  Rc5 {[%clk 0:00:05]} 43. Bd7 {[%clk 0:00:13]}  Rc7 {[%clk 0:00:06]} 44. Be8 {[%clk 0:00:13]}  Rc4 {[%clk 0:00:05]} 45. Kf3 {[%clk 0:00:12]}  a4 {[%clk 0:00:05]} 46. Ke2 {[%clk 0:00:12]}  a3 {[%clk 0:00:06]} 47. Bf7 {[%clk 0:00:11]}  a2 {[%clk 0:00:05]} 48. Bxc4 {[%clk 0:00:12]}  a1=Q {[%clk 0:00:06]} 49. Kf3 {[%clk 0:00:10]}  Qf6+ {[%clk 0:00:06]} 50. Ke2 {[%clk 0:00:08]}  Qc6 {[%clk 0:00:05]} 51. Bd3 {[%clk 0:00:08]}  Qc5 {[%clk 0:00:06]} 52. Be4 {[%clk 0:00:08]}  Kg8 {[%clk 0:00:07]} 53. Kf3 {[%clk 0:00:08]}  Kf7 {[%clk 0:00:08]} 54. Kg2 {[%clk 0:00:08]}  Kf6 {[%clk 0:00:09]} 55. Bf3 {[%clk 0:00:09]}  Qe5 {[%clk 0:00:10]} 56. h4 {[%clk 0:00:09]}  Qe7 {[%clk 0:00:10]} 57. Bg4 {[%clk 0:00:09]}  g5 {[%clk 0:00:11]} 58. hxg5+ {[%clk 0:00:08]}  hxg5 {[%clk 0:00:12]} 59. Bf3 {[%clk 0:00:09]}  Qe5 {[%clk 0:00:13]} 60. g4 {[%clk 0:00:09]}  Qd6 {[%clk 0:00:13]} 61. Be4 {[%clk 0:00:09]}  Ke5 {[%clk 0:00:13]} 62. Bf3 {[%clk 0:00:09]}  Qd2 {[%clk 0:00:14]} 63. Kg1 {[%clk 0:00:07]}  Kd6 {[%clk 0:00:14]} 64. Kg2 {[%clk 0:00:07]}  Kc5 {[%clk 0:00:15]} 65. Kf1 {[%clk 0:00:07]}  Kc4 {[%clk 0:00:16]} 66. Be2+ {[%clk 0:00:07]}  Kc3 {[%clk 0:00:16]} 67. Bf3 {[%clk 0:00:08]}  Qd3+ {[%clk 0:00:16]} 68. Be2 {[%clk 0:00:07]}  Qb1+ {[%clk 0:00:16]} 69. Kg2 {[%clk 0:00:07]}  Kd2 {[%clk 0:00:17]} 70. Bf3 {[%clk 0:00:08]}  Ke1 {[%clk 0:00:18]} 71. Bd5 {[%clk 0:00:06]}  Qc2 {[%clk 0:00:17]} 72. Kh3 {[%clk 0:00:05]}  Qxf2 {[%clk 0:00:16]} 73. Bg2 {[%clk 0:00:06]}  Qxe3+ {[%clk 0:00:16]} 74. Kh2 {[%clk 0:00:06]}  Kf2 {[%clk 0:00:16]} 75. Kh1 {[%clk 0:00:04]}  Qe1+ {[%clk 0:00:15]} 76. Kh2 {[%clk 0:00:04]}  Qg1+ {[%clk 0:00:16]} 77. Kh3 {[%clk 0:00:05]}  Qxg2# {[%clk 0:00:17]} 0-1


[Site "https://www.chess.com"]

[Event "Titled Tuesday Blitz December 06 Early 2022"]
[White "Skliarov, Viktor"]
[Black "Zaragatski, Ilja"]
[WhiteFideId "14106736"]
[BlackFideId "4655192"]
[WhiteElo "2629"]
[BlackElo "2484"]
[Result "0-1"]
[Round "07"]
[TimeControl "180+1"]
[Date "2022.12.07"]
[WhiteClock "0:00:15"]
[BlackClock "0:00:05"]

1. e4 {[%clk 0:03:00]}  e6 {[%clk 0:02:58]} 2. d4 {[%clk 0:03:01]}  d5 {[%clk 0:02:57]} 3. e5 {[%clk 0:03:01]}  c5 {[%clk 0:02:56]} 4. c3 {[%clk 0:03:02]}  Nc6 {[%clk 0:02:57]} 5. Nf3 {[%clk 0:03:02]}  Nge7 {[%clk 0:02:57]} 6. a3 {[%clk 0:03:02]}  a5 {[%clk 0:02:55]} 7. Bd3 {[%clk 0:03:01]}  cxd4 {[%clk 0:02:54]} 8. cxd4 {[%clk 0:03:01]}  Nf5 {[%clk 0:02:54]} 9. Bxf5 {[%clk 0:03:01]}  exf5 {[%clk 0:02:55]} 10. Nc3 {[%clk 0:03:01]}  Be6 {[%clk 0:02:55]} 11. O-O {[%clk 0:03:00]}  Be7 {[%clk 0:02:52]} 12. Ne1 {[%clk 0:02:57]}  O-O {[%clk 0:02:34]} 13. Be3 {[%clk 0:02:57]}  Qb6 {[%clk 0:02:30]} 14. Na4 {[%clk 0:02:56]}  Qb5 {[%clk 0:02:28]} 15. Nd3 {[%clk 0:02:56]}  b6 {[%clk 0:02:25]} 16. Rc1 {[%clk 0:02:53]}  Rfc8 {[%clk 0:02:24]} 17. Nc3 {[%clk 0:02:44]}  Qa6 {[%clk 0:02:24]} 18. Qd2 {[%clk 0:02:44]}  a4 {[%clk 0:02:14]} 19. Bg5 {[%clk 0:02:06]}  Bf8 {[%clk 0:02:13]} 20. Nf4 {[%clk 0:01:52]}  h6 {[%clk 0:01:44]} 21. Nfxd5 {[%clk 0:01:41]}  Nxd4 {[%clk 0:00:43]} 22. Bxh6 {[%clk 0:01:15]}  Bxd5 {[%clk 0:00:38]} 23. Qxd4 {[%clk 0:01:11]}  Bc4 {[%clk 0:00:31]} 24. Bg5 {[%clk 0:00:47]}  Bxf1 {[%clk 0:00:30]} 25. Rxf1 {[%clk 0:00:47]}  Qc4 {[%clk 0:00:27]} 26. Qd7 {[%clk 0:00:28]}  Rc7 {[%clk 0:00:24]} 27. Qxf5 {[%clk 0:00:27]}  Bxa3 {[%clk 0:00:17]} 28. bxa3 {[%clk 0:00:23]}  Qxc3 {[%clk 0:00:17]} 29. e6 {[%clk 0:00:23]}  fxe6 {[%clk 0:00:14]} 30. Qxe6+ {[%clk 0:00:23]}  Rf7 {[%clk 0:00:15]} 31. Qe4 {[%clk 0:00:18]}  Qa5 {[%clk 0:00:10]} 32. Bd2 {[%clk 0:00:16]}  Qa6 {[%clk 0:00:08]} 33. Bb4 {[%clk 0:00:15]}  b5 {[%clk 0:00:07]} 34. g3 {[%clk 0:00:15]}  Rc8 {[%clk 0:00:05]} 0-1


[Site "https://www.chess.com"]

[Event "Titled Tuesday Blitz December 06 Early 2022"]
[White "Sztokbant, Bernardo Vainzoff"]
[Black "Csonka, Balazs"]
[WhiteFideId "2115956"]
[BlackFideId "742910"]
[WhiteElo "2504"]
[BlackElo "2667"]
[Result "0-1"]
[Round "07"]
[TimeControl "180+1"]
[Date "2022.12.07"]
[WhiteClock "0:00:05"]
[BlackClock "0:00:03"]

1. e4 {[%clk 0:03:00]}  e5 {[%clk 0:02:59]} 2. Nf3 {[%clk 0:03:00]}  Nc6 {[%clk 0:03:00]} 3. Bb5 {[%clk 0:03:00]}  a6 {[%clk 0:02:57]} 4. Ba4 {[%clk 0:03:01]}  Nf6 {[%clk 0:02:57]} 5. O-O {[%clk 0:03:01]}  b5 {[%clk 0:02:50]} 6. Bb3 {[%clk 0:03:01]}  Bc5 {[%clk 0:02:50]} 7. Qe2 {[%clk 0:03:00]}  O-O {[%clk 0:02:49]} 8. c3 {[%clk 0:02:59]}  d6 {[%clk 0:02:48]} 9. d3 {[%clk 0:02:58]}  h6 {[%clk 0:02:38]} 10. Nbd2 {[%clk 0:02:56]}  Be6 {[%clk 0:02:29]} 11. h3 {[%clk 0:02:53]}  Bb6 {[%clk 0:01:39]} 12. Re1 {[%clk 0:02:50]}  Re8 {[%clk 0:01:21]} 13. Bc2 {[%clk 0:02:44]}  d5 {[%clk 0:01:16]} 14. Nf1 {[%clk 0:02:44]}  Qd7 {[%clk 0:01:15]} 15. Be3 {[%clk 0:02:36]}  d4 {[%clk 0:01:15]} 16. cxd4 {[%clk 0:02:22]}  Nxd4 {[%clk 0:01:13]} 17. Bxd4 {[%clk 0:02:16]}  Bxd4 {[%clk 0:01:13]} 18. Bb3 {[%clk 0:02:08]}  Bxb3 {[%clk 0:01:05]} 19. axb3 {[%clk 0:02:09]}  Bb6 {[%clk 0:01:02]} 20. Ne3 {[%clk 0:02:00]}  g6 {[%clk 0:00:57]} 21. Red1 {[%clk 0:01:56]}  a5 {[%clk 0:00:50]} 22. Nh2 {[%clk 0:01:48]}  h5 {[%clk 0:00:42]} 23. Nf3 {[%clk 0:01:47]}  Rad8 {[%clk 0:00:40]} 24. Nh4 {[%clk 0:01:39]}  Re6 {[%clk 0:00:34]} 25. Nf3 {[%clk 0:01:36]}  Qe7 {[%clk 0:00:27]} 26. Rac1 {[%clk 0:01:20]}  Qb4 {[%clk 0:00:22]} 27. Rc3 {[%clk 0:01:03]}  Qe7 {[%clk 0:00:12]} 28. Rdc1 {[%clk 0:00:52]}  c5 {[%clk 0:00:10]} 29. h4 {[%clk 0:00:39]}  Red6 {[%clk 0:00:10]} 30. Ne1 {[%clk 0:00:36]}  Qd7 {[%clk 0:00:08]} 31. g3 {[%clk 0:00:33]}  Kf8 {[%clk 0:00:07]} 32. Kg2 {[%clk 0:00:34]}  Ba7 {[%clk 0:00:07]} 33. Ra1 {[%clk 0:00:32]}  Bb6 {[%clk 0:00:07]} 34. Rac1 {[%clk 0:00:32]}  Qe6 {[%clk 0:00:06]} 35. Qf3 {[%clk 0:00:30]}  Kg7 {[%clk 0:00:05]} 36. Qe2 {[%clk 0:00:27]}  Ng4 {[%clk 0:00:05]} 37. Nd5 {[%clk 0:00:22]}  Rxd5 {[%clk 0:00:05]} 38. exd5 {[%clk 0:00:23]}  Rxd5 {[%clk 0:00:06]} 39. Nf3 {[%clk 0:00:18]}  Qc6 {[%clk 0:00:04]} 40. Kg1 {[%clk 0:00:17]}  Qd6 {[%clk 0:00:04]} 41. Ng5 {[%clk 0:00:12]}  f5 {[%clk 0:00:04]} 42. Nf3 {[%clk 0:00:12]}  e4 {[%clk 0:00:03]} 43. dxe4 {[%clk 0:00:12]}  fxe4 {[%clk 0:00:04]} 44. Qxe4 {[%clk 0:00:12]}  c4 {[%clk 0:00:05]} 45. bxc4 {[%clk 0:00:05]}  Qxg3+ {[%clk 0:00:03]} 46. Kh1 {[%clk 0:00:05]}  Nxf2# {[%clk 0:00:03]} 0-1


[Site "https://www.chess.com"]

[Event "Titled Tuesday Blitz December 06 Early 2022"]
[White "Tarlabasi, Emirhan"]
[Black "Hansen, Eric"]
[WhiteFideId "6350275"]
[BlackFideId "2606771"]
[WhiteElo "2623"]
[BlackElo "2918"]
[Result "0-1"]
[Round "07"]
[TimeControl "180+1"]
[Date "2022.12.07"]
[WhiteClock "0:00:53"]
[BlackClock "0:02:29"]

1. Nf3 {[%clk 0:03:00]}  d5 {[%clk 0:03:00]} 2. c4 {[%clk 0:03:00]}  e6 {[%clk 0:03:00]} 3. b3 {[%clk 0:03:01]}  Nf6 {[%clk 0:02:55]} 4. Bb2 {[%clk 0:02:58]}  Be7 {[%clk 0:02:55]} 5. g3 {[%clk 0:02:56]}  O-O {[%clk 0:02:55]} 6. Bg2 {[%clk 0:02:55]}  a5 {[%clk 0:02:55]} 7. Nc3 {[%clk 0:02:55]}  c6 {[%clk 0:02:55]} 8. d4 {[%clk 0:02:54]}  Nbd7 {[%clk 0:02:55]} 9. O-O {[%clk 0:02:54]}  b6 {[%clk 0:02:47]} 10. Qc2 {[%clk 0:02:54]}  Ba6 {[%clk 0:02:47]} 11. Nd2 {[%clk 0:02:48]}  Rc8 {[%clk 0:02:47]} 12. e4 {[%clk 0:02:46]}  b5 {[%clk 0:02:43]} 13. Ne2 {[%clk 0:02:02]}  bxc4 {[%clk 0:02:42]} 14. bxc4 {[%clk 0:02:02]}  Nb6 {[%clk 0:02:43]} 15. e5 {[%clk 0:01:30]}  Nfd7 {[%clk 0:02:42]} 16. Bc3 {[%clk 0:01:27]}  Nxc4 {[%clk 0:02:41]} 17. Nxc4 {[%clk 0:01:27]}  Bxc4 {[%clk 0:02:42]} 18. Rfe1 {[%clk 0:01:27]}  c5 {[%clk 0:02:41]} 19. Qd2 {[%clk 0:01:25]}  a4 {[%clk 0:02:41]} 20. Ba5 {[%clk 0:01:23]}  Qe8 {[%clk 0:02:41]} 21. Rab1 {[%clk 0:01:17]}  cxd4 {[%clk 0:02:41]} 22. Nxd4 {[%clk 0:01:17]}  Nc5 {[%clk 0:02:41]} 23. Bb4 {[%clk 0:01:09]}  Nd3 {[%clk 0:02:40]} 24. Bxe7 {[%clk 0:01:08]}  Qxe7 {[%clk 0:02:40]} 25. Re3 {[%clk 0:01:05]}  Nc5 {[%clk 0:02:32]} 26. Qb4 {[%clk 0:01:04]}  Qa7 {[%clk 0:02:32]} 27. Ree1 {[%clk 0:00:53]}  Nd3 {[%clk 0:02:29]} 0-1


[Site "https://www.chess.com"]

[Event "Titled Tuesday Blitz December 06 Early 2022"]
[White "Tarnowska, Aleksandra"]
[Black "Sakun, Volodymyr"]
[WhiteFideId "1180967"]
[BlackFideId "14114062"]
[WhiteElo "1776"]
[BlackElo "2319"]
[Result "0-1"]
[Round "07"]
[TimeControl "180+1"]
[Date "2022.12.07"]
[WhiteClock "0:00:05"]
[BlackClock "0:00:52"]

1. e4 {[%clk 0:02:47]}  c5 {[%clk 0:02:59]} 2. Nf3 {[%clk 0:02:44]}  e6 {[%clk 0:02:58]} 3. d4 {[%clk 0:02:41]}  cxd4 {[%clk 0:02:59]} 4. Nxd4 {[%clk 0:02:42]}  a6 {[%clk 0:02:59]} 5. Nc3 {[%clk 0:02:41]}  Qc7 {[%clk 0:02:59]} 6. Bd3 {[%clk 0:02:38]}  Nc6 {[%clk 0:02:58]} 7. Nb3 {[%clk 0:02:33]}  Nf6 {[%clk 0:02:57]} 8. O-O {[%clk 0:02:33]}  Bb4 {[%clk 0:02:53]} 9. Bd2 {[%clk 0:02:30]}  O-O {[%clk 0:02:52]} 10. a3 {[%clk 0:02:30]}  Be7 {[%clk 0:02:51]} 11. Qe2 {[%clk 0:02:24]}  d6 {[%clk 0:02:51]} 12. Be3 {[%clk 0:02:15]}  b5 {[%clk 0:02:50]} 13. f4 {[%clk 0:02:08]}  Bb7 {[%clk 0:02:49]} 14. Nd4 {[%clk 0:02:01]}  Rfe8 {[%clk 0:02:47]} 15. Rae1 {[%clk 0:02:00]}  Bf8 {[%clk 0:02:46]} 16. h3 {[%clk 0:01:40]}  g6 {[%clk 0:02:35]} 17. Qf2 {[%clk 0:01:32]}  Bg7 {[%clk 0:02:33]} 18. f5 {[%clk 0:01:21]}  gxf5 {[%clk 0:02:16]} 19. exf5 {[%clk 0:01:22]}  e5 {[%clk 0:02:16]} 20. Nde2 {[%clk 0:01:04]}  e4 {[%clk 0:02:12]} 21. Bxe4 {[%clk 0:00:56]}  Nxe4 {[%clk 0:02:11]} 22. Nxe4 {[%clk 0:00:56]}  Rxe4 {[%clk 0:02:10]} 23. f6 {[%clk 0:00:57]}  Bf8 {[%clk 0:01:58]} 24. Qg3+ {[%clk 0:00:51]}  Kh8 {[%clk 0:01:56]} 25. Nf4 {[%clk 0:00:38]}  Ne5 {[%clk 0:01:51]} 26. c3 {[%clk 0:00:32]}  Re8 {[%clk 0:01:44]} 27. Nh5 {[%clk 0:00:29]}  Ng6 {[%clk 0:01:34]} 28. Bd2 {[%clk 0:00:26]}  Qc5+ {[%clk 0:01:20]} 29. Kh1 {[%clk 0:00:23]}  Qxh5 {[%clk 0:01:19]} 30. Rxe4 {[%clk 0:00:15]}  Rxe4 {[%clk 0:01:15]} 31. Qd3 {[%clk 0:00:14]}  Ne5 {[%clk 0:00:58]} 32. Qg3 {[%clk 0:00:09]}  Rg4 {[%clk 0:00:57]} 33. Qh2 {[%clk 0:00:08]}  Rxg2 {[%clk 0:00:55]} 34. Qxg2 {[%clk 0:00:08]}  Bxg2+ {[%clk 0:00:55]} 35. Kxg2 {[%clk 0:00:08]}  Qe2+ {[%clk 0:00:54]} 36. Rf2 {[%clk 0:00:08]}  Qe4+ {[%clk 0:00:55]} 37. Kg1 {[%clk 0:00:07]}  Nf3+ {[%clk 0:00:54]} 38. Kf1 {[%clk 0:00:05]}  Qd3+ {[%clk 0:00:52]} 0-1


[Site "https://www.chess.com"]